[Event "Early-Titled-Tuesday-Blitz-January-23-2024"]
[Site "Chess.com"]
[Date "2024.01.23"]
[Round "8"]
[White "mary-sanna"]
[Black "tolia123"]
[Result "1-0"]
[WhiteElo "2214"]
[BlackElo "2064"]
[TimeControl "180+1"]
[EndTime "9:28:49 PST"]
[Termination "mary-sanna won by resignation"]

1. d4 {[%clk 0:03:00.3]} 1... f6 {[%clk 0:02:59.2]} 2. e4 {[%clk 0:02:57.8]}
2... g6 {[%clk 0:02:51.1]} 3. h4 {[%clk 0:02:53.6]} 3... h5 {[%clk 0:02:47.2]}
4. Bd3 {[%clk 0:02:49.8]} 4... Bg7 {[%clk 0:02:46.9]} 5. e5 {[%clk 0:02:41]}
5... f5 {[%clk 0:02:46.9]} 6. Bg5 {[%clk 0:02:36.2]} 6... d6 {[%clk 0:02:44.9]}
7. Nf3 {[%clk 0:02:26.5]} 7... dxe5 {[%clk 0:02:41.6]} 8. Nxe5 {[%clk
0:02:14.9]} 8... Qxd4 {[%clk 0:02:37.6]} 9. Nxg6 {[%clk 0:02:13.3]} 9... Qxb2
{[%clk 0:02:37]} 10. Nxh8 {[%clk 0:01:56.2]} 10... Qxa1 {[%clk 0:02:35.6]} 11.
Qxh5+ {[%clk 0:01:55.1]} 11... Kd8 {[%clk 0:02:32.6]} 12. Nf7+ {[%clk
0:01:53.2]} 12... Kd7 {[%clk 0:02:20.9]} 13. Bxf5+ {[%clk 0:01:35.3]} 13... e6
{[%clk 0:02:21.1]} 14. Qd1+ {[%clk 0:01:34.8]} 14... Qd4 {[%clk 0:02:13.6]} 15.
Qxd4+ {[%clk 0:01:23.6]} 15... Bxd4 {[%clk 0:02:14.5]} 16. Bg4 {[%clk
0:01:20.1]} 16... Nc6 {[%clk 0:02:07.8]} 17. c3 {[%clk 0:01:15.4]} 17... Bg7
{[%clk 0:02:05.3]} 18. O-O {[%clk 0:01:11.2]} 18... b6 {[%clk 0:01:58]} 19. Rd1+
{[%clk 0:01:10.7]} 19... Ke8 {[%clk 0:01:58.3]} 20. Bh5 {[%clk 0:01:10.3]} 20...
Kf8 {[%clk 0:01:57.8]} 21. Nd8 {[%clk 0:01:03.1]} 21... Nce7 {[%clk 0:01:30.8]}
22. Bf3 {[%clk 0:00:50.2]} 22... Rb8 {[%clk 0:01:24.5]} 23. h5 {[%clk
0:00:40.2]} 23... Bf6 {[%clk 0:01:17.5]} 24. Bf4 {[%clk 0:00:27.6]} 24... e5
{[%clk 0:01:16.4]} 25. Be3 {[%clk 0:00:26.8]} 25... Bf5 {[%clk 0:01:11.9]} 26.
Nc6 {[%clk 0:00:22.1]} 26... Nxc6 {[%clk 0:01:11.5]} 27. Bxc6 {[%clk 0:00:23]}
27... Ne7 {[%clk 0:01:11.8]} 28. Bf3 {[%clk 0:00:21.6]} 28... c6 {[%clk
0:00:57.5]} 29. g4 {[%clk 0:00:21.2]} 29... Bc2 {[%clk 0:00:56]} 30. Rc1 {[%clk
0:00:20.5]} 30... Bd3 {[%clk 0:00:56.3]} 31. Nd2 {[%clk 0:00:19.7]} 31... Nd5
{[%clk 0:00:55.4]} 32. Ne4 {[%clk 0:00:17.2]} 32... Nxe3 {[%clk 0:00:54.1]} 33.
fxe3 {[%clk 0:00:12.7]} 33... Bxe4 {[%clk 0:00:50.1]} 34. Bxe4 {[%clk
0:00:12.7]} 34... Bg5 {[%clk 0:00:50.6]} 35. Kf2 {[%clk 0:00:12.8]} 35... c5
{[%clk 0:00:48.1]} 36. Rd1 {[%clk 0:00:12.3]} 36... Rd8 {[%clk 0:00:43.9]} 37.
Rxd8+ {[%clk 0:00:11]} 37... Bxd8 {[%clk 0:00:44.8]} 38. Bf5 {[%clk 0:00:10]}
38... Bg5 {[%clk 0:00:44.2]} 39. Kf3 {[%clk 0:00:09.7]} 39... Ke7 {[%clk
0:00:43.2]} 40. Ke4 {[%clk 0:00:09.5]} 40... Kd6 {[%clk 0:00:43.6]} 41. c4
{[%clk 0:00:09.9]} 41... Bh6 {[%clk 0:00:43.5]} 42. Bg6 {[%clk 0:00:09.3]} 42...
Ke6 {[%clk 0:00:42.1]} 43. Bf5+ {[%clk 0:00:09.5]} 43... Kd6 {[%clk 0:00:42.2]}
44. Bh7 {[%clk 0:00:09.8]} 44... a6 {[%clk 0:00:32]} 45. a4 {[%clk 0:00:09.9]}
45... Ke6 {[%clk 0:00:30.1]} 46. Bg8+ {[%clk 0:00:09.9]} 46... Kf6 {[%clk
0:00:28.9]} 47. Bd5 {[%clk 0:00:08.7]} 47... Kg5 {[%clk 0:00:22.1]} 48. Kxe5
{[%clk 0:00:08.6]} 48... Kxg4 {[%clk 0:00:22.3]} 49. e4 {[%clk 0:00:09]} 49...
Kxh5 {[%clk 0:00:20.3]} 50. Kd6 {[%clk 0:00:08.3]} 50... Kg6 {[%clk 0:00:18.5]}
51. Kc6 {[%clk 0:00:08.1]} 51... Kf6 {[%clk 0:00:18.4]} 52. Kxb6 {[%clk
0:00:08.5]} 52... Be3 {[%clk 0:00:18.5]} 53. Kxa6 {[%clk 0:00:08.6]} 53... Ke5
{[%clk 0:00:18.9]} 54. Kb7 {[%clk 0:00:08.8]} 54... Bd2 {[%clk 0:00:18.8]} 55.
Kc6 {[%clk 0:00:09]} 55... Bb4 {[%clk 0:00:18.1]} 56. Kb5 {[%clk 0:00:09.5]}
56... Kd4 {[%clk 0:00:16.8]} 57. a5 {[%clk 0:00:09.8]} 57... Ke5 {[%clk
0:00:16.6]} 58. a6 {[%clk 0:00:10.2]} 58... Kd6 {[%clk 0:00:17.3]} 59. a7 {[%clk
0:00:10.4]} 1-0

[Event "Early-Titled-Tuesday-Blitz-January-23-2024"]
[Site "Chess.com"]
[Date "2024.01.23"]
[Round "8"]
[White "artin10862"]
[Black "Sebastian"]
[Result "0-1"]
[WhiteElo "2846"]
[BlackElo "3010"]
[TimeControl "180+1"]
[EndTime "9:28:53 PST"]
[Termination "Sebastian won on time"]

1. c4 {[%clk 0:03:00.9]} 1... c5 {[%clk 0:03:00]} 2. Nf3 {[%clk 0:02:59.2]} 2...
Nf6 {[%clk 0:02:59.8]} 3. Nc3 {[%clk 0:02:59.1]} 3... Nc6 {[%clk 0:02:59.9]} 4.
e3 {[%clk 0:02:56.2]} 4... a6 {[%clk 0:02:58]} 5. b3 {[%clk 0:02:39.4]} 5... g6
{[%clk 0:02:55.5]} 6. Bb2 {[%clk 0:02:38.6]} 6... Bg7 {[%clk 0:02:56.1]} 7. Ne4
{[%clk 0:02:27.4]} 7... d6 {[%clk 0:02:45.8]} 8. Nxf6+ {[%clk 0:02:26.6]} 8...
Bxf6 {[%clk 0:02:45.3]} 9. Bxf6 {[%clk 0:02:26.2]} 9... exf6 {[%clk 0:02:46.2]}
10. Be2 {[%clk 0:02:20.4]} 10... O-O {[%clk 0:02:45.8]} 11. O-O {[%clk
0:02:20.5]} 11... f5 {[%clk 0:02:41.7]} 12. g3 {[%clk 0:02:12.9]} 12... Qf6
{[%clk 0:02:28.7]} 13. Qc2 {[%clk 0:02:11.4]} 13... Re8 {[%clk 0:02:16.8]} 14.
Rfd1 {[%clk 0:02:10.2]} 14... a5 {[%clk 0:02:06]} 15. Qc3 {[%clk 0:02:05.1]}
15... Kg7 {[%clk 0:01:56.1]} 16. Ng5 {[%clk 0:01:57.2]} 16... h6 {[%clk
0:01:15.6]} 17. Nh3 {[%clk 0:01:56.4]} 17... g5 {[%clk 0:00:56.9]} 18. a3 {[%clk
0:01:28.8]} 18... f4 {[%clk 0:00:41.2]} 19. Qxf6+ {[%clk 0:01:23.5]} 19... Kxf6
{[%clk 0:00:41.6]} 20. Bf1 {[%clk 0:01:23.7]} 20... f3 {[%clk 0:00:28]} 21. Kh1
{[%clk 0:01:20.6]} 21... Bf5 {[%clk 0:00:26.9]} 22. Ng1 {[%clk 0:01:14.9]} 22...
g4 {[%clk 0:00:26.7]} 23. Rdc1 {[%clk 0:01:07.3]} 23... a4 {[%clk 0:00:26.6]}
24. Rc3 {[%clk 0:01:06.9]} 24... axb3 {[%clk 0:00:25.6]} 25. Rxb3 {[%clk
0:01:07.8]} 25... Ra7 {[%clk 0:00:26]} 26. d3 {[%clk 0:00:48.5]} 26... Rea8
{[%clk 0:00:25.4]} 27. Ra2 {[%clk 0:00:48.2]} 27... h5 {[%clk 0:00:25]} 28. h3
{[%clk 0:00:48.1]} 28... Be6 {[%clk 0:00:24.3]} 29. Ra1 {[%clk 0:00:45.8]} 29...
Ke7 {[%clk 0:00:21.1]} 30. Rab1 {[%clk 0:00:43.1]} 30... Bc8 {[%clk 0:00:18.6]}
31. Ra1 {[%clk 0:00:40.2]} 31... Ra4 {[%clk 0:00:18.2]} 32. Rc3 {[%clk 0:00:35]}
32... R8a7 {[%clk 0:00:18]} 33. Rb3 {[%clk 0:00:35.2]} 33... Be6 {[%clk
0:00:17.9]} 34. Rc3 {[%clk 0:00:35.6]} 34... Ne5 {[%clk 0:00:14.1]} 35. Kh2
{[%clk 0:00:20.7]} 35... Kd7 {[%clk 0:00:14.2]} 36. Ra2 {[%clk 0:00:10.4]} 36...
Kc7 {[%clk 0:00:14.3]} 37. Ra1 {[%clk 0:00:09.4]} 37... Nc6 {[%clk 0:00:12.5]}
38. Kh1 {[%clk 0:00:07.4]} 38... b6 {[%clk 0:00:11.6]} 39. Kh2 {[%clk
0:00:07.6]} 39... Ne5 {[%clk 0:00:09.8]} 40. Kh1 {[%clk 0:00:07.9]} 40... R7a5
{[%clk 0:00:09.9]} 41. Kh2 {[%clk 0:00:08]} 41... f6 {[%clk 0:00:10.3]} 42. Kh1
{[%clk 0:00:07.8]} 42... Nc6 {[%clk 0:00:10.3]} 43. Kh2 {[%clk 0:00:07.9]} 43...
Na7 {[%clk 0:00:10.2]} 44. d4 {[%clk 0:00:07.8]} 44... Bd7 {[%clk 0:00:06.9]}
45. Bd3 {[%clk 0:00:08.2]} 45... Nc6 {[%clk 0:00:06.8]} 46. d5 {[%clk
0:00:05.9]} 46... Ne5 {[%clk 0:00:07]} 47. Bf1 {[%clk 0:00:05.4]} 47... b5
{[%clk 0:00:07.4]} 48. cxb5 {[%clk 0:00:05.5]} 48... Bxb5 {[%clk 0:00:08.3]} 49.
Bxb5 {[%clk 0:00:05.4]} 49... Rxb5 {[%clk 0:00:08.9]} 50. hxg4 {[%clk
0:00:05.5]} 50... hxg4 {[%clk 0:00:09]} 51. Ra2 {[%clk 0:00:04.6]} 51... Rb1
{[%clk 0:00:08.6]} 52. Rac2 {[%clk 0:00:04.3]} 52... Ra1 {[%clk 0:00:07.3]} 53.
Nh3 {[%clk 0:00:02.8]} 53... gxh3 {[%clk 0:00:06.8]} 0-1

[Event "Early-Titled-Tuesday-Blitz-January-23-2024"]
[Site "Chess.com"]
[Date "2024.01.23"]
[Round "8"]
[White "only_strong_moves"]
[Black "JoliyRoger"]
[Result "0-1"]
[WhiteElo "2607"]
[BlackElo "2491"]
[TimeControl "180+1"]
[EndTime "9:28:54 PST"]
[Termination "JoliyRoger won by resignation"]

1. d4 {[%clk 0:02:55.8]} 1... Nf6 {[%clk 0:02:59.1]} 2. Nc3 {[%clk 0:02:56.2]}
2... d5 {[%clk 0:02:58.4]} 3. Bf4 {[%clk 0:02:56.6]} 3... c6 {[%clk 0:02:58.7]}
4. e3 {[%clk 0:02:56.1]} 4... Bf5 {[%clk 0:02:59.1]} 5. Nf3 {[%clk 0:02:55.5]}
5... e6 {[%clk 0:02:56.9]} 6. Ne5 {[%clk 0:02:55.7]} 6... h6 {[%clk 0:02:39.9]}
7. g4 {[%clk 0:02:54.8]} 7... Bh7 {[%clk 0:02:38.6]} 8. h4 {[%clk 0:02:55.4]}
8... Nbd7 {[%clk 0:02:28.3]} 9. Bd3 {[%clk 0:02:39.8]} 9... Bxd3 {[%clk
0:02:15.7]} 10. cxd3 {[%clk 0:02:39]} 10... Nxe5 {[%clk 0:01:46.2]} 11. Bxe5
{[%clk 0:02:38.3]} 11... Nd7 {[%clk 0:01:42.7]} 12. Bg3 {[%clk 0:02:35.4]} 12...
h5 {[%clk 0:01:36.1]} 13. g5 {[%clk 0:02:31.4]} 13... g6 {[%clk 0:01:36]} 14.
Qb3 {[%clk 0:02:28.2]} 14... Qb6 {[%clk 0:01:34.8]} 15. Qc2 {[%clk 0:02:25]}
15... Bb4 {[%clk 0:01:31.5]} 16. O-O {[%clk 0:02:23]} 16... O-O {[%clk
0:01:29.1]} 17. Ne2 {[%clk 0:02:21.8]} 17... Be7 {[%clk 0:01:27]} 18. Nf4 {[%clk
0:02:19.5]} 18... Rac8 {[%clk 0:01:25]} 19. Qe2 {[%clk 0:02:18.9]} 19... Kg7
{[%clk 0:01:10.7]} 20. b3 {[%clk 0:02:13.7]} 20... a5 {[%clk 0:01:08.7]} 21.
Rac1 {[%clk 0:02:07.6]} 21... Qb5 {[%clk 0:01:05.5]} 22. Qb2 {[%clk 0:02:00.7]}
22... Ra8 {[%clk 0:01:02.7]} 23. e4 {[%clk 0:01:52.6]} 23... a4 {[%clk
0:00:59.8]} 24. Qe2 {[%clk 0:01:41.4]} 24... axb3 {[%clk 0:00:53.2]} 25. axb3
{[%clk 0:01:42.3]} 25... Ra3 {[%clk 0:00:53]} 26. exd5 {[%clk 0:01:39.9]} 26...
cxd5 {[%clk 0:00:50.5]} 27. Rc7 {[%clk 0:01:40.3]} 27... Bd8 {[%clk 0:00:36.1]}
28. Rc8 {[%clk 0:01:33.5]} 28... Rxb3 {[%clk 0:00:21.2]} 29. Kg2 {[%clk
0:01:32.5]} 29... Rb2 {[%clk 0:00:20.8]} 30. Qe3 {[%clk 0:01:28.9]} 30... Qb4
{[%clk 0:00:15.3]} 31. Ra1 {[%clk 0:01:23.5]} 31... Qd2 {[%clk 0:00:12.2]} 32.
Qf3 {[%clk 0:01:20.1]} 32... Nb6 {[%clk 0:00:09.1]} 33. Rb8 {[%clk 0:01:01.7]}
33... Nd7 {[%clk 0:00:09.3]} 34. Rba8 {[%clk 0:00:57.9]} 34... Nb6 {[%clk
0:00:09.8]} 35. Rxd8 {[%clk 0:00:44.2]} 35... Rxd8 {[%clk 0:00:09.1]} 36. Nxe6+
{[%clk 0:00:44.8]} 36... fxe6 {[%clk 0:00:09.8]} 37. Be5+ {[%clk 0:00:45.4]}
37... Kg8 {[%clk 0:00:09.5]} 38. Qf6 {[%clk 0:00:46.1]} 38... Qxf2+ {[%clk
0:00:09.5]} 39. Qxf2 {[%clk 0:00:47]} 39... Rxf2+ {[%clk 0:00:10]} 40. Kxf2
{[%clk 0:00:47.9]} 40... Nd7 {[%clk 0:00:10.3]} 41. Bd6 {[%clk 0:00:45.2]} 41...
Rc8 {[%clk 0:00:09.1]} 42. Ra7 {[%clk 0:00:44.6]} 42... Rc6 {[%clk 0:00:09.2]}
43. Bf4 {[%clk 0:00:43]} 43... Rb6 {[%clk 0:00:09.4]} 44. Ke3 {[%clk 0:00:42.4]}
44... Kf7 {[%clk 0:00:09.9]} 45. Ra8 {[%clk 0:00:42.3]} 45... Rb5 {[%clk
0:00:09.7]} 46. Bd6 {[%clk 0:00:41.7]} 46... Rb6 {[%clk 0:00:09]} 47. Ba3 {[%clk
0:00:42.3]} 47... Rb3 {[%clk 0:00:09.4]} 48. Bd6 {[%clk 0:00:36.9]} 48... Rb6
{[%clk 0:00:09.7]} 49. Bc7 {[%clk 0:00:36.9]} 49... Rc6 {[%clk 0:00:09.6]} 50.
Bf4 {[%clk 0:00:36.4]} 50... Rb6 {[%clk 0:00:09.8]} 51. Rd8 {[%clk 0:00:35.6]}
51... Ke7 {[%clk 0:00:09]} 52. Rh8 {[%clk 0:00:35.8]} 52... Nf8 {[%clk
0:00:09.5]} 53. Be5 {[%clk 0:00:29.3]} 53... Kf7 {[%clk 0:00:09.9]} 54. Bc7
{[%clk 0:00:20.1]} 54... Rc6 {[%clk 0:00:10]} 55. Be5 {[%clk 0:00:20.2]} 55...
b5 {[%clk 0:00:10.4]} 56. Kd2 {[%clk 0:00:10]} 56... b4 {[%clk 0:00:10.7]} 57.
Bd6 {[%clk 0:00:03.3]} 57... Rxd6 {[%clk 0:00:10.4]} 0-1

[Event "Early-Titled-Tuesday-Blitz-January-23-2024"]
[Site "Chess.com"]
[Date "2024.01.23"]
[Round "8"]
[White "JuniorJumper"]
[Black "alvarorodriguezavila"]
[Result "1-0"]
[WhiteElo "2579"]
[BlackElo "2337"]
[TimeControl "180+1"]
[EndTime "9:28:55 PST"]
[Termination "JuniorJumper won on time"]

1. b3 {[%clk 0:03:00.9]} 1... e5 {[%clk 0:02:52.5]} 2. Bb2 {[%clk 0:03:00.6]}
2... Nc6 {[%clk 0:02:52.2]} 3. e3 {[%clk 0:03:00.9]} 3... Nge7 {[%clk
0:02:52.1]} 4. Bb5 {[%clk 0:02:57.6]} 4... a6 {[%clk 0:02:52.1]} 5. Bxc6 {[%clk
0:02:57.6]} 5... Nxc6 {[%clk 0:02:53]} 6. Nf3 {[%clk 0:02:57.4]} 6... e4 {[%clk
0:02:51.4]} 7. Nd4 {[%clk 0:02:57.2]} 7... Nxd4 {[%clk 0:02:50.8]} 8. Bxd4
{[%clk 0:02:58.1]} 8... d5 {[%clk 0:02:50]} 9. d3 {[%clk 0:02:56.4]} 9... Qg5
{[%clk 0:02:48.6]} 10. Rg1 {[%clk 0:02:40.1]} 10... Bg4 {[%clk 0:02:34.8]} 11.
Qd2 {[%clk 0:02:30.6]} 11... a5 {[%clk 0:01:59.9]} 12. Bb2 {[%clk 0:01:31.7]}
12... Bb4 {[%clk 0:01:53.3]} 13. Nc3 {[%clk 0:01:30]} 13... d4 {[%clk
0:01:22.2]} 14. exd4 {[%clk 0:01:18.4]} 14... Qxd2+ {[%clk 0:01:04.7]} 15. Kxd2
{[%clk 0:01:18]} 15... exd3 {[%clk 0:01:05.6]} 16. Kxd3 {[%clk 0:01:15.6]} 16...
O-O-O {[%clk 0:01:04.5]} 17. a3 {[%clk 0:01:07.3]} 17... Bf5+ {[%clk 0:01:04.6]}
18. Ne4 {[%clk 0:01:07.3]} 18... Bc5 {[%clk 0:00:26.7]} 19. Ke3 {[%clk
0:00:43.7]} 19... Rhe8 {[%clk 0:00:17.5]} 20. f3 {[%clk 0:00:44.2]} 20... Bb6
{[%clk 0:00:14.3]} 21. Rge1 {[%clk 0:00:34.6]} 21... Bg6 {[%clk 0:00:11.6]} 22.
Kf2 {[%clk 0:00:29.6]} 22... Bxe4 {[%clk 0:00:07.2]} 23. Rxe4 {[%clk 0:00:25.5]}
23... Rxe4 {[%clk 0:00:07.4]} 24. fxe4 {[%clk 0:00:26.3]} 24... Bxd4+ {[%clk
0:00:08.2]} 25. Bxd4 {[%clk 0:00:27.1]} 25... Rxd4 {[%clk 0:00:09.1]} 26. Ke3
{[%clk 0:00:27.7]} 26... Rd6 {[%clk 0:00:08.5]} 27. Rf1 {[%clk 0:00:28.3]} 27...
f6 {[%clk 0:00:08.9]} 28. Rf5 {[%clk 0:00:28.4]} 28... b6 {[%clk 0:00:08.6]} 29.
Rh5 {[%clk 0:00:29]} 29... h6 {[%clk 0:00:09]} 30. Rh4 {[%clk 0:00:24.1]} 30...
Rc6 {[%clk 0:00:09.4]} 31. Kd3 {[%clk 0:00:22.2]} 31... Rd6+ {[%clk 0:00:09.8]}
32. Ke3 {[%clk 0:00:22.8]} 32... Rc6 {[%clk 0:00:10.1]} 33. Kd2 {[%clk
0:00:20.5]} 33... Rd6+ {[%clk 0:00:10.5]} 34. Kc3 {[%clk 0:00:19.5]} 34... Rc6+
{[%clk 0:00:10.7]} 35. Kb2 {[%clk 0:00:20.2]} 35... Rd6 {[%clk 0:00:11.3]} 36.
Rg4 {[%clk 0:00:20.8]} 36... Rd7 {[%clk 0:00:11.1]} 37. h4 {[%clk 0:00:18.8]}
37... Re7 {[%clk 0:00:11.5]} 38. h5 {[%clk 0:00:18.8]} 38... Kd7 {[%clk
0:00:12.2]} 39. Kc3 {[%clk 0:00:19.1]} 39... Kd6 {[%clk 0:00:12.7]} 40. Kd4
{[%clk 0:00:19.7]} 40... Rd7 {[%clk 0:00:11.5]} 41. Ke3 {[%clk 0:00:16.8]} 41...
Ke6 {[%clk 0:00:11.9]} 42. a4 {[%clk 0:00:13.8]} 42... c6 {[%clk 0:00:10.4]} 43.
Rg6 {[%clk 0:00:13.3]} 43... Ke5 {[%clk 0:00:10]} 44. Rg3 {[%clk 0:00:12.8]}
44... Ke6 {[%clk 0:00:09.5]} 45. Kf4 {[%clk 0:00:08.8]} 45... Re7 {[%clk
0:00:08]} 46. Rc3 {[%clk 0:00:08.5]} 46... c5 {[%clk 0:00:07.6]} 47. Rd3 {[%clk
0:00:09]} 47... Rd7 {[%clk 0:00:04.3]} 48. Rxd7 {[%clk 0:00:09.2]} 48... Kxd7
{[%clk 0:00:04.9]} 49. Kf5 {[%clk 0:00:10.1]} 49... Ke7 {[%clk 0:00:04.7]} 50.
e5 {[%clk 0:00:07.8]} 50... fxe5 {[%clk 0:00:04.2]} 51. Kxe5 {[%clk 0:00:08.7]}
51... Kf7 {[%clk 0:00:03.7]} 52. Kd6 {[%clk 0:00:09.1]} 52... Kf6 {[%clk
0:00:04.2]} 53. Kc6 {[%clk 0:00:09.8]} 1-0

[Event "Early-Titled-Tuesday-Blitz-January-23-2024"]
[Site "Chess.com"]
[Date "2024.01.23"]
[Round "8"]
[White "VomDingJetztHer"]
[Black "Lady_Nika"]
[Result "1-0"]
[WhiteElo "2439"]
[BlackElo "2544"]
[TimeControl "180+1"]
[EndTime "9:28:56 PST"]
[Termination "VomDingJetztHer won by resignation"]

1. a3 {[%clk 0:03:00.9]} 1... d5 {[%clk 0:02:58.5]} 2. Nf3 {[%clk 0:02:59.3]}
2... e6 {[%clk 0:02:58.5]} 3. e3 {[%clk 0:02:59]} 3... f5 {[%clk 0:02:58.5]} 4.
b4 {[%clk 0:02:51.8]} 4... Nf6 {[%clk 0:02:59.4]} 5. Bb2 {[%clk 0:02:52.1]} 5...
Bd6 {[%clk 0:02:59.5]} 6. c4 {[%clk 0:02:52.7]} 6... c6 {[%clk 0:02:59.6]} 7.
Be5 {[%clk 0:02:52.1]} 7... O-O {[%clk 0:02:58.7]} 8. d4 {[%clk 0:02:50.3]} 8...
Ne4 {[%clk 0:02:58.3]} 9. Bxd6 {[%clk 0:02:47.7]} 9... Qxd6 {[%clk 0:02:57.9]}
10. Bd3 {[%clk 0:02:47]} 10... Nd7 {[%clk 0:02:57.9]} 11. Nbd2 {[%clk
0:02:41.5]} 11... a6 {[%clk 0:02:56.4]} 12. O-O {[%clk 0:02:40.5]} 12... Qe7
{[%clk 0:02:55.4]} 13. Ne5 {[%clk 0:02:35.5]} 13... Nxe5 {[%clk 0:02:55.3]} 14.
dxe5 {[%clk 0:02:35.5]} 14... Bd7 {[%clk 0:02:54.6]} 15. c5 {[%clk 0:02:17.8]}
15... g5 {[%clk 0:02:49.4]} 16. Nb3 {[%clk 0:02:11.7]} 16... Qg7 {[%clk
0:02:31.5]} 17. f4 {[%clk 0:02:09.6]} 17... Kh8 {[%clk 0:02:22.5]} 18. Nd4
{[%clk 0:02:09]} 18... Rg8 {[%clk 0:02:21.2]} 19. Bxe4 {[%clk 0:02:02.6]} 19...
fxe4 {[%clk 0:02:13.6]} 20. Qg4 {[%clk 0:01:25.4]} 20... Qe7 {[%clk 0:02:05.9]}
21. Qh5 {[%clk 0:01:11.1]} 21... Rg6 {[%clk 0:01:56.8]} 22. fxg5 {[%clk
0:00:58.8]} 22... Rxg5 {[%clk 0:01:34.1]} 23. Rf7 {[%clk 0:00:58]} 23... Rxh5
{[%clk 0:01:06.3]} 24. Rxe7 {[%clk 0:00:58.1]} 24... Rd8 {[%clk 0:00:59]} 25.
Rf1 {[%clk 0:00:56.4]} 25... Kg8 {[%clk 0:00:46.2]} 26. Rff7 {[%clk 0:00:54.5]}
26... Be8 {[%clk 0:00:40.6]} 27. Rg7+ {[%clk 0:00:53.9]} 27... Kh8 {[%clk
0:00:40.5]} 28. Nxe6 {[%clk 0:00:53.1]} 28... Rc8 {[%clk 0:00:37.1]} 29. Nf4
{[%clk 0:00:38]} 29... Rh6 {[%clk 0:00:36.7]} 30. Rxb7 {[%clk 0:00:33.6]} 30...
d4 {[%clk 0:00:27.6]} 31. exd4 {[%clk 0:00:32.6]} 31... e3 {[%clk 0:00:26.7]}
32. h3 {[%clk 0:00:28]} 32... Rd8 {[%clk 0:00:21]} 33. Rge7 {[%clk 0:00:28.1]}
33... Bg6 {[%clk 0:00:10.8]} 34. Nxg6+ {[%clk 0:00:27]} 34... hxg6 {[%clk
0:00:10.8]} 35. Rbd7 {[%clk 0:00:24.4]} 35... Rf8 {[%clk 0:00:10.8]} 36. Rf7
{[%clk 0:00:22.6]} 36... Rxf7 {[%clk 0:00:09]} 37. Rxf7 {[%clk 0:00:23.5]} 37...
Rh4 {[%clk 0:00:08.7]} 38. e6 {[%clk 0:00:15.7]} 38... Re4 {[%clk 0:00:06]} 39.
Kf1 {[%clk 0:00:10.1]} 39... e2+ {[%clk 0:00:05]} 40. Ke1 {[%clk 0:00:10.1]}
40... Rxe6 {[%clk 0:00:05.9]} 41. Rf2 {[%clk 0:00:08.6]} 41... Re4 {[%clk
0:00:06.1]} 42. Rf6 {[%clk 0:00:08.5]} 42... Rxd4 {[%clk 0:00:06.1]} 43. Kxe2
{[%clk 0:00:08]} 43... Re4+ {[%clk 0:00:06]} 44. Kd3 {[%clk 0:00:08]} 44... Re1
{[%clk 0:00:03.9]} 45. Rxg6 {[%clk 0:00:08.2]} 45... Ra1 {[%clk 0:00:03.9]} 46.
Rxc6 {[%clk 0:00:07.9]} 46... Rxa3+ {[%clk 0:00:04.3]} 47. Kc4 {[%clk
0:00:08.5]} 47... Ra2 {[%clk 0:00:04.7]} 48. Rg6 {[%clk 0:00:08.4]} 48... Rc2+
{[%clk 0:00:03.3]} 49. Kd5 {[%clk 0:00:08.2]} 49... Rb2 {[%clk 0:00:03.7]} 50.
Rg4 {[%clk 0:00:08.4]} 50... Re2 {[%clk 0:00:02.6]} 51. Kc6 {[%clk 0:00:08.2]}
51... Kh7 {[%clk 0:00:02.8]} 52. Kb7 {[%clk 0:00:07.9]} 52... Re6 {[%clk
0:00:03.7]} 53. c6 {[%clk 0:00:08]} 53... Re7+ {[%clk 0:00:03.7]} 54. c7 {[%clk
0:00:08.4]} 54... Kh6 {[%clk 0:00:04.6]} 55. Kb8 {[%clk 0:00:08.6]} 55... Kh5
{[%clk 0:00:05.5]} 56. c8=Q {[%clk 0:00:08.8]} 56... a5 {[%clk 0:00:05.1]} 57.
Qh8+ {[%clk 0:00:08.4]} 1-0